fUSD/lending_fUSD_20260523
["ID","MTS","AMOUNT","RATE_DAILY","PERIOD"]
[422856445,1779529841000,-130.78579556,8.738e-05,2]
[422856449,1779529841000,-13.94198901,8.738e-05,2]
[422856446,1779529841000,-369.21420444,8.738e-05,2]
[422856448,1779529841000,-344.18986782,8.738e-05,2]
[422856447,1779529841000,-162.55052264,8.738e-05,2]
[422856440,1779529841000,-288.83146265,8.738e-05,2]
[422856461,1779529842000,-500.0,8.738e-05,2]
[422856465,1779529842000,-500.0,8.738e-05,2]
[422856466,1779529842000,-500.0,8.738e-05,2]
[422856468,1779529842000,-500.0,8.738e-05,2]
[422856476,1779529842000,-500.0,8.738e-05,2]
[422856469,1779529842000,-500.0,8.738e-05,2]
[422856472,1779529842000,-500.0,8.738e-05,2]
[422856464,1779529842000,-500.0,8.738e-05,2]
[422856475,1779529842000,-500.0,8.738e-05,2]
[422856473,1779529842000,-500.0,8.738e-05,2]
[422856467,1779529842000,-500.0,8.738e-05,2]
[422856462,1779529842000,-52.03850397,8.738e-05,2]
[422856458,1779529842000,-314.95116376,8.738e-05,2]
[422856460,1779529842000,-500.0,8.738e-05,2]
[422856457,1779529842000,-500.0,8.738e-05,2]
[422856459,1779529842000,-185.04883624,8.738e-05,2]
[422856456,1779529842000,-86.28301867,8.738e-05,2]
[422856455,1779529842000,-413.71698133,8.738e-05,2]
[422856454,1779529842000,-500.0,8.738e-05,2]
[422856453,1779529842000,-500.0,8.738e-05,2]
[422856452,1779529842000,-500.0,8.738e-05,2]
[422856450,1779529842000,-152.88703296,8.738e-05,2]
[422856451,1779529842000,-500.0,8.738e-05,2]
[422856471,1779529842000,-500.0,8.738e-05,2]
[422856463,1779529842000,-197.96149603,8.738e-05,2]
[422856474,1779529842000,-500.0,8.738e-05,2]
[422856470,1779529842000,-500.0,8.738e-05,2]
[422856479,1779529842000,-500.0,8.738e-05,2]
[422856503,1779529842000,-28734.30223927,8.739e-05,2]
[422856502,1779529842000,-22631.68804208,8.739e-05,2]
[422856501,1779529842000,-33655.93048182,8.739e-05,2]
[422856495,1779529842000,-500.0,8.738e-05,2]
[422856499,1779529842000,-500.0,8.738e-05,2]
[422856498,1779529842000,-500.0,8.738e-05,2]
[422856500,1779529842000,-500.0,8.738e-05,2]
[422856497,1779529842000,-500.0,8.738e-05,2]
[422856494,1779529842000,-500.0,8.738e-05,2]
[422856493,1779529842000,-421.65868522,8.738e-05,2]
[422856490,1779529842000,-500.0,8.738e-05,2]
[422856492,1779529842000,-500.0,8.738e-05,2]
[422856496,1779529842000,-500.0,8.738e-05,2]
[422856491,1779529842000,-500.0,8.738e-05,2]
[422856489,1779529842000,-500.0,8.738e-05,2]
[422856480,1779529842000,-500.0,8.738e-05,2]
[422856481,1779529842000,-500.0,8.738e-05,2]
[422856482,1779529842000,-500.0,8.738e-05,2]
[422856478,1779529842000,-449.02203799,8.738e-05,2]
[422856486,1779529842000,-500.0,8.738e-05,2]
[422856477,1779529842000,-500.0,8.738e-05,2]
[422856488,1779529842000,-500.0,8.738e-05,2]
[422856484,1779529842000,-500.0,8.738e-05,2]
[422856483,1779529842000,-500.0,8.738e-05,2]
[422856485,1779529842000,-500.0,8.738e-05,2]
[422856487,1779529842000,-500.0,8.738e-05,2]
[422856504,1779529842000,-951.59844034,8.739e-05,2]
[422856521,1779529843000,-4624.64889182,8.739e-05,2]
[422856522,1779529843000,-796.18494401,8.739e-05,2]
[422856520,1779529843000,-577.15,8.739e-05,2]
[422856515,1779529843000,-373.62254486,8.739e-05,2]
[422856525,1779529846000,-2931.71123841,8.739e-05,2]
[422856524,1779529846000,-558.23011544,8.739e-05,2]
[422856526,1779529846000,-825542.12307203,8.739e-05,2]
[422856528,1779529846000,-4301.72188325,8.739e-05,2]
[422856529,1779529846000,-2241.38955998,8.739e-05,2]
[422856530,1779529846000,-3899.75,8.739e-05,2]
[422856527,1779529846000,-1148.9113853,8.739e-05,2]
[422856570,1779529887000,155.98,6.165e-05,2]
[422856569,1779529887000,155.98,5.48e-05,2]
[422856572,1779529888000,155.98,7.535e-05,2]
[422856571,1779529888000,155.98,6.85e-05,2]
[422856574,1779530141000,261.29372084,0.00024002,120]
[422856575,1779530362000,689.28,7.922e-05,2]
[422856576,1779530472000,200.0,7.847e-05,2]
[422856578,1779530616000,319.62,7.723e-05,2]
[422856579,1779530617000,171.3,7.723e-05,2]
[422856580,1779530619000,20844.22,7.723e-05,2]
[422856581,1779530688000,4149.76,7.712e-05,2]
[422856582,1779530702000,150.0,7.841e-05,2]
[422856583,1779530708000,150.0,7.841e-05,2]
[422856584,1779530710000,150.0,7.841e-05,2]
[422856586,1779530715000,150.0,7.841e-05,2]
[422856585,1779530715000,151.08749519,7.841e-05,2]
[422856587,1779530718000,150.0,7.841e-05,2]
[422856588,1779530719000,1091.9,7.673e-05,2]
[422856589,1779530721000,150.0,7.841e-05,2]
[422856590,1779530723000,150.0,7.841e-05,2]
[422856591,1779530756000,150.11,3.837e-05,2]
[422856592,1779530848000,700.0,8.7e-05,3]
[422856593,1779530850000,1400.0,8.8e-05,3]
[422856594,1779530852000,2200.0,8.9e-05,3]
[422856595,1779530855000,2900.0,9e-05,3]
[422856596,1779530940000,1000.0,0.0002808,120]
[422856627,1779531032000,-150.0,8.485e-05,2]
[422856628,1779531032000,-202.18202386,8.537e-05,2]
[422856629,1779531032000,-500.0,8.537e-05,2]
[422856620,1779531032000,-4059.02,8.241e-05,2]
[422856626,1779531032000,-178.95200143,8.454e-05,2]
[422856625,1779531032000,-7221.01378635,8.446e-05,2]
[422856622,1779531032000,-241.0,8.43e-05,2]
[422856624,1779531032000,-12655.0,8.436e-05,2]
[422856623,1779531032000,-1836.0,8.43e-05,2]
[422856621,1779531032000,-9075.4451408,8.426e-05,2]
[422856631,1779531032000,-152.09447829,8.537e-05,2]
[422856609,1779531032000,-250.0,8.135e-05,2]
[422856615,1779531032000,-162.09,8.218e-05,2]
[422856619,1779531032000,-155.98,8.22e-05,2]
[422856617,1779531032000,-1586.57,8.219e-05,2]
[422856618,1779531032000,-2000.0,8.219e-05,2]
[422856613,1779531032000,-1200.0,8.217e-05,2]
[422856612,1779531032000,-300.0,8.217e-05,2]
[422856611,1779531032000,-160.0,8.185e-05,2]
[422856610,1779531032000,-2548.88041,8.178e-05,2]
[422856608,1779531032000,-1182.49,8.122e-05,2]
[422856607,1779531032000,-250.0,8.109e-05,2]
[422856606,1779531032000,-2648.76,8.104e-05,2]
[422856614,1779531032000,-300.0,8.217e-05,2]
[422856630,1779531032000,-500.0,8.537e-05,2]
[422856616,1779531032000,-1200.0,8.218e-05,2]
[422856632,1779531032000,-500.0,8.537e-05,2]
[422856682,1779531032000,-1294.64297778,8.538e-05,2]
[422856680,1779531032000,-40450.56415553,8.538e-05,2]
[422856673,1779531032000,-751.17372741,8.538e-05,2]
[422856668,1779531032000,-1206.96082785,8.538e-05,2]
[422856670,1779531032000,-2412.11522595,8.538e-05,2]
[422856666,1779531032000,-1575.73615394,8.538e-05,2]
[422856677,1779531032000,-665.05309429,8.538e-05,2]
[422856675,1779531032000,-301.48251273,8.538e-05,2]
[422856664,1779531032000,-320.6767,8.538e-05,2]
[422856661,1779531032000,-448.355,8.538e-05,2]
[422856658,1779531032000,-4081.97550058,8.538e-05,2]
[422856653,1779531032000,-618.81962469,8.538e-05,2]
[422856650,1779531032000,-1950.17403298,8.538e-05,2]
[422856647,1779531032000,-255.75980045,8.538e-05,2]
[422856656,1779531032000,-739.83242181,8.538e-05,2]
[422856641,1779531032000,-72868.69527748,8.538e-05,2]
[422856640,1779531032000,-166.982,8.537e-05,2]
[422856639,1779531032000,-975.103,8.537e-05,2]
[422856637,1779531032000,-500.0,8.537e-05,2]
[422856638,1779531032000,-500.0,8.537e-05,2]
[422856634,1779531032000,-481.74128783,8.537e-05,2]
[422856636,1779531032000,-500.0,8.537e-05,2]
[422856635,1779531032000,-500.0,8.537e-05,2]
[422856684,1779531032000,-581.72491626,8.538e-05,2]
[422856633,1779531032000,-500.0,8.537e-05,2]
[422856801,1779531034000,1227.99243558,8.537e-05,3]
[422856809,1779531038000,-2762.94568636,8.538e-05,2]
[422856808,1779531038000,-2621.19849465,8.538e-05,2]
[422856807,1779531038000,-4405.66696543,8.538e-05,2]
[422856805,1779531038000,-571.18927001,8.538e-05,2]
[422856806,1779531038000,-446.26987052,8.538e-05,2]
[422856804,1779531038000,-552.93113016,8.538e-05,2]
[422856810,1779531038000,-503.47737862,8.538e-05,2]
[422857010,1779531040000,-747.38,8.474e-05,2]
[422856994,1779531040000,-1283.08701655,8.474e-05,2]
[422857023,1779531043000,-10584.35291694,8.474e-05,2]
[422857022,1779531043000,-9173.40769887,8.474e-05,2]
[422857027,1779531043000,-3548.76205583,8.474e-05,2]
[422857026,1779531043000,-1325.45124041,8.474e-05,2]
[422857024,1779531043000,-730.48049219,8.474e-05,2]
[422857025,1779531043000,-287.42762796,8.474e-05,2]
[422857029,1779531043000,-12532.85464043,8.474e-05,2]
[422857030,1779531043000,-19335.99568879,8.538e-05,2]
[422857031,1779531043000,-93611.80817566,8.538e-05,2]
[422857032,1779531043000,-409.53,8.538e-05,2]
[422857028,1779531043000,-456.92043422,8.474e-05,2]
[422857040,1779531044000,152.0,9.418e-05,7]
[422857033,1779531044000,-2193.31730551,8.538e-05,2]
[422857044,1779531046000,-381.23466672,8.538e-05,2]
[422857043,1779531046000,-576.47645733,8.538e-05,2]
[422857045,1779531046000,-366.69020406,8.538e-05,2]
[422857049,1779531046000,-511.63701206,8.538e-05,2]
[422857048,1779531046000,-492.98298303,8.538e-05,2]
[422857047,1779531046000,-778.38686246,8.538e-05,2]
[422857046,1779531046000,-7521.88673891,8.538e-05,2]
[422857081,1779531224000,330.0,8.74e-05,3]
[422857084,1779531579000,330.0,8.74e-05,3]
[422857085,1779531598000,164.8,4.287e-05,2]
[422857089,1779531884000,-438.62506687,8.217e-05,2]
[422857090,1779531896000,330.0,8.74e-05,3]
[422857093,1779532036000,400.0,7.8e-05,2]
[422857094,1779532038000,800.0,7.9e-05,2]
[422857095,1779532040000,1300.0,8e-05,2]
[422857096,1779532141000,1000.0,0.00028079,120]
[422857097,1779532190000,1852.42,7.62e-05,2]
[422857098,1779532197000,202.69281676,5.973e-05,15]
[422857106,1779532232000,-341.45693313,8.217e-05,2]
[422857107,1779532232000,-166.98250942,8.217e-05,2]
[422857103,1779532232000,-500.0,8.119e-05,2]
[422857105,1779532232000,-250.0,8.202e-05,2]
[422857108,1779532232000,-793.28,8.219e-05,2]
[422857109,1779532232000,-1200.0,8.283e-05,2]
[422857110,1779532232000,-1200.0,8.283e-05,2]
[422857111,1779532232000,-300.0,8.284e-05,2]
[422857112,1779532232000,-300.0,8.284e-05,2]
[422857104,1779532232000,-250.0,8.168e-05,2]
[422857119,1779532232000,-819.56436745,8.285e-05,2]
[422857115,1779532232000,-61839.79470052,8.285e-05,2]
[422857117,1779532232000,-448.42004428,8.285e-05,2]
[422857125,1779532232000,-250.0,8.285e-05,2]
[422857118,1779532232000,-405.21062676,8.285e-05,2]
[422857121,1779532232000,-263.94,8.285e-05,2]
[422857120,1779532232000,-298.72806,8.285e-05,2]
[422857124,1779532232000,-369.98931999,8.285e-05,2]
[422857123,1779532232000,-416.00221638,8.285e-05,2]
[422857113,1779532232000,-150.0,8.284e-05,2]
[422857116,1779532232000,-474.20905484,8.285e-05,2]
[422857114,1779532232000,-4465.463,8.285e-05,2]
[422857122,1779532232000,-510.0,8.285e-05,2]
[422857144,1779532238000,-30.63319022,8.355e-05,2]
[422857143,1779532238000,-528.89680978,8.285e-05,2]
[422857142,1779532238000,-329.16,8.285e-05,2]
[422857151,1779532241000,-500.0,8.384e-05,2]
[422857150,1779532241000,-183.1576786,8.355e-05,2]
[422857152,1779532241000,-500.0,8.384e-05,2]
[422857153,1779532241000,-500.0,8.384e-05,2]
[422857158,1779532241000,-500.0,8.384e-05,2]
[422857155,1779532241000,-500.0,8.384e-05,2]
[422857157,1779532241000,-602.66586853,8.384e-05,2]
[422857154,1779532241000,-500.0,8.384e-05,2]
[422857156,1779532241000,-500.0,8.384e-05,2]
[422857159,1779532241000,-488.98825686,8.384e-05,2]
[422857167,1779532243000,-673.3,8.385e-05,2]
[422857164,1779532243000,-306.4661348,8.384e-05,2]
[422857166,1779532243000,-410552.41628846,8.385e-05,2]
[422857165,1779532243000,-537.21890148,8.384e-05,2]
[422857163,1779532243000,-11.01174314,8.384e-05,2]
[422857173,1779532246000,-572.01969778,8.385e-05,2]
[422857174,1779532246000,-1893.12,8.385e-05,2]
[422857175,1779532246000,-7560.78717971,8.385e-05,2]
[422857177,1779532247000,-617.2790083,8.385e-05,2]
[422857176,1779532247000,-9769.63196662,8.385e-05,2]
[422857178,1779532247000,-505.0,8.385e-05,2]
[422857182,1779532251000,330.0,8.74e-05,3]
[422857185,1779532363000,500.0,0.0002763,120]
[422857186,1779532381000,268.58058186,8.525e-05,7]
[422857191,1779532453000,192.12,7.792e-05,2]
[422857190,1779532453000,192.12,5.844e-05,2]
[422857189,1779532453000,192.12,3.896e-05,2]
[422857192,1779532477000,171.3,7.768e-05,2]
[422857193,1779532511000,200.0,7.696e-05,2]
[422857208,1779533340000,1000.0,0.00028078,120]
[422857218,1779533432000,-85.43209493,8.102e-05,2]
[422857217,1779533432000,-500.0,8.019e-05,2]
[422857219,1779533432000,-164.56790507,8.102e-05,2]
[422857221,1779533432000,-500.0,8.184e-05,2]
[422857220,1779533432000,-312.22,8.114e-05,2]
[422857223,1779533432000,-409.93252463,8.184e-05,2]
[422857222,1779533432000,-500.0,8.184e-05,2]
[422857224,1779533432000,-150.0,8.184e-05,2]
[422857226,1779533432000,-353.74607495,8.184e-05,2]
[422857228,1779533432000,-1943.8475121,8.185e-05,2]
[422857227,1779533432000,-962.15026107,8.185e-05,2]
[422857229,1779533432000,-73666.65412683,8.185e-05,2]
[422857232,1779533432000,-4118.316849,8.185e-05,2]
[422857230,1779533432000,-51913.6204283,8.185e-05,2]
[422857231,1779533432000,-3604.27630931,8.185e-05,2]
[422857234,1779533432000,-6090.60525,8.185e-05,2]
[422857225,1779533432000,-846.25392505,8.184e-05,2]
[422857251,1779533438000,-22.545131,8.297e-05,2]
[422857247,1779533438000,-152.21,8.219e-05,2]
[422857248,1779533438000,-36.19458247,8.219e-05,2]
[422857249,1779533438000,-360.44541753,8.219e-05,2]
[422857250,1779533438000,-210.62,8.219e-05,2]
[422858049,1779533446000,-354.633423,8.329e-05,2]
[422858048,1779533446000,-144.604869,8.297e-05,2]
[422858051,1779533447000,-5082.5378267,8.37e-05,2]
[422858052,1779533447000,-3663.19712465,8.378e-05,2]
[422858053,1779533447000,-1747.57,8.378e-05,2]
[422858050,1779533447000,-145.366577,8.329e-05,2]
[422858056,1779533546000,873.66,4.474e-05,2]
[422858055,1779533546000,873.66,4.25e-05,2]
[422858058,1779533546000,873.66,4.921e-05,2]
[422858057,1779533546000,873.66,4.698e-05,2]
[422858061,1779533547000,873.66,5.592e-05,2]
[422858060,1779533547000,873.66,5.369e-05,2]
[422858059,1779533547000,873.66,5.145e-05,2]
[422858062,1779533547000,873.66,5.816e-05,2]
[422858065,1779533548000,873.66,6.487e-05,2]
[422858064,1779533548000,873.66,6.263e-05,2]
[422858063,1779533548000,873.66,6.04e-05,2]
[422858068,1779533549000,873.66,7.158e-05,2]
[422858067,1779533549000,873.66,6.935e-05,2]
[422858066,1779533549000,873.66,6.711e-05,2]
[422858069,1779533550000,873.66,7.382e-05,2]
[422858070,1779533550000,873.66,7.606e-05,2]
[422858071,1779533550000,873.66,7.829e-05,2]
[422858072,1779533588000,4790.624022,7.945e-05,2]
[422858073,1779533609000,1421.324,7.923e-05,2]
[422858078,1779533658000,-1136.81519681,8.085e-05,2]
[422858077,1779533658000,-6806.3292,8.085e-05,2]
[422858076,1779533658000,-150.0,8.084e-05,2]
[422858074,1779533658000,-873.66,8.053e-05,2]
[422858075,1779533658000,-300.0,8.084e-05,2]
[422858088,1779533952000,-1650.0,7.945e-05,2]
[422858086,1779533952000,-4100.0,7.9e-05,2]
[422858087,1779533952000,-250.0,7.945e-05,2]
[422858085,1779533952000,-2000.0,7.8e-05,2]
[422858089,1779533953000,152.0,9.031e-05,3]
[422858096,1779534039000,-4268.254109,8e-05,2]
[422858094,1779534039000,-15425.416691,7.945e-05,2]
[422858092,1779534039000,-300.0,7.944e-05,2]
[422858093,1779534039000,-1200.0,7.944e-05,2]
[422858095,1779534039000,-6806.3292,7.985e-05,2]
[422858099,1779534156000,202.83,5.883e-05,2]
[422858102,1779534277000,1338.9,4.031e-05,2]
[422858101,1779534277000,1338.9,3.839e-05,2]
[422858100,1779534277000,1338.9,3.647e-05,2]
[422858104,1779534278000,1338.9,4.415e-05,2]
[422858103,1779534278000,1338.9,4.223e-05,2]
[422858106,1779534278000,1338.9,4.799e-05,2]
[422858105,1779534278000,1338.9,4.607e-05,2]
[422858108,1779534279000,1338.9,5.183e-05,2]
[422858107,1779534279000,1338.9,4.991e-05,2]
[422858109,1779534279000,1338.9,5.375e-05,2]
[422858113,1779534280000,1338.9,6.142e-05,2]
[422858112,1779534280000,1338.9,5.951e-05,2]
[422858111,1779534280000,1338.9,5.759e-05,2]
[422858110,1779534280000,1338.9,5.567e-05,2]
[422858118,1779534281000,1338.9,7.102e-05,2]
[422858117,1779534281000,1338.9,6.91e-05,2]
[422858116,1779534281000,1338.9,6.718e-05,2]
[422858115,1779534281000,1338.9,6.526e-05,2]
[422858114,1779534281000,1338.9,6.334e-05,2]
[422858119,1779534454000,8700.0,0.0001,3]
[422858120,1779534462000,281.94,7.075e-05,2]
[422858121,1779534474000,200.0,7.081e-05,2]
[422858122,1779534481000,1232.0,8.208e-05,5]
[422858124,1779534541000,1000.0,0.00028077,120]
[422858138,1779534631000,-2100.0,7.8e-05,2]
[422858144,1779534631000,-4300.0,7.9e-05,2]
[422858143,1779534631000,-6251.0,7.881e-05,2]
[422858139,1779534631000,-300.0,7.849e-05,2]
[422858142,1779534631000,-15793.0,7.865e-05,2]
[422858140,1779534631000,-1200.0,7.849e-05,2]
[422858141,1779534631000,-19365.0,7.85e-05,2]
[422858137,1779534631000,-150.0,7.76e-05,2]
[422858128,1779534631000,-477.78,7.217e-05,2]
[422858134,1779534631000,-209.4,7.516e-05,2]
[422858135,1779534631000,-234.5,7.671e-05,2]
[422858132,1779534631000,-219.42,7.397e-05,2]
[422858133,1779534631000,-250.0,7.48e-05,2]
[422858131,1779534631000,-328.68,7.315e-05,2]
[422858130,1779534631000,-1338.9,7.294e-05,2]
[422858129,1779534631000,-937.26,7.245e-05,2]
[422858146,1779534631000,-3211.0,7.911e-05,2]
[422858136,1779534631000,-167.17,7.734e-05,2]
[422858150,1779534631000,-214.0,7.945e-05,2]
[422858145,1779534631000,-150.0,7.91e-05,2]
[422858148,1779534631000,-250.0,7.939e-05,2]
[422858149,1779534631000,-250.0,7.939e-05,2]
[422858167,1779534631000,-407.49983695,8.085e-05,2]
[422858168,1779534631000,-1173.36399931,8.085e-05,2]
[422858163,1779534631000,-280.63250004,8.085e-05,2]
[422858165,1779534631000,-1618.91636732,8.085e-05,2]
[422858164,1779534631000,-262.44568919,8.085e-05,2]
[422858161,1779534631000,-8706.66041,8.085e-05,2]
[422858159,1779534631000,-16247.88343225,8.085e-05,2]
[422858158,1779534631000,-273058.5375381,8.085e-05,2]
[422858156,1779534631000,-1100.38972464,8.084e-05,2]
[422858166,1779534631000,-618.31401655,8.085e-05,2]
[422858162,1779534631000,-347.29169126,8.085e-05,2]
[422858160,1779534631000,-32048.99586204,8.085e-05,2]
[422858152,1779534631000,-265.0,7.97e-05,2]
[422858151,1779534631000,-250.0,7.969e-05,2]
[422858154,1779534631000,-6500.0,8e-05,2]
[422858147,1779534631000,-193.0,7.939e-05,2]
[422858155,1779534631000,-500.0,8.027e-05,2]
[422858157,1779534631000,-1137.059,8.084e-05,2]
[422858153,1779534631000,-33444.8023,7.985e-05,2]
[422858440,1779534650000,-5923.7445093,8.331e-05,2]
[422858448,1779534650000,-298.110224,8.335e-05,2]
[422858446,1779534650000,-777344.7129762,8.335e-05,2]
[422858441,1779534650000,-396384.2119074,8.331e-05,2]
[422858445,1779534650000,-191.006356,8.331e-05,2]
[422858444,1779534650000,-151.0,8.331e-05,2]
[422858443,1779534650000,-151.0,8.331e-05,2]
[422858442,1779534650000,-151.0,8.331e-05,2]
[422858438,1779534650000,-873.66,8.277e-05,2]
[422858439,1779534650000,-219.42,8.322e-05,2]
[422858428,1779534650000,-549.87,8.085e-05,2]
[422858435,1779534650000,-2000.0,8.219e-05,2]
[422858436,1779534650000,-1153.99,8.219e-05,2]
[422858434,1779534650000,-609.0,8.192e-05,2]
[422858433,1779534650000,-500.0,8.11e-05,2]
[422858431,1779534650000,-152.744763,8.085e-05,2]
[422858429,1779534650000,-723349.14896018,8.085e-05,2]
[422858432,1779534650000,-500.0,8.11e-05,2]
[422858430,1779534650000,-151.0,8.085e-05,2]
[422858427,1779534650000,-500.0,8.085e-05,2]
[422858447,1779534650000,-151.0,8.335e-05,2]
[422858437,1779534650000,-152.21,8.219e-05,2]
[422858450,1779534650000,-500.0,8.335e-05,2]
[422858449,1779534650000,-151.0,8.335e-05,2]
[422858470,1779534650000,-150.0,8.877e-05,2]
[422858471,1779534650000,-150.0,8.877e-05,2]
[422858475,1779534650000,-150.0,8.913e-05,2]
[422858473,1779534650000,-500.0,8.883e-05,2]
[422858474,1779534650000,-152.21,8.904e-05,2]
[422858472,1779534650000,-150.0,8.877e-05,2]
[422858467,1779534650000,-150.0,8.877e-05,2]
[422858452,1779534650000,-3062.52196545,8.378e-05,2]
[422858469,1779534650000,-150.0,8.877e-05,2]
[422858466,1779534650000,-150.0,8.877e-05,2]
[422858468,1779534650000,-150.0,8.877e-05,2]
[422858461,1779534650000,-150.0,8.877e-05,2]
[422858462,1779534650000,-150.0,8.877e-05,2]
[422858465,1779534650000,-150.0,8.877e-05,2]
[422858451,1779534650000,-170.43895318,8.348e-05,2]
[422858453,1779534650000,-873.66,8.5e-05,2]
[422858457,1779534650000,-255.0,8.701e-05,2]
[422858463,1779534650000,-150.0,8.877e-05,2]
[422858455,1779534650000,-420.0,8.634e-05,2]
[422858456,1779534650000,-1680.0,8.634e-05,2]
[422858458,1779534650000,-151.0,8.818e-05,2]
[422858460,1779534650000,-202.83,8.824e-05,2]
[422858459,1779534650000,-470.0,8.822e-05,2]
[422858464,1779534650000,-251.37092639,8.877e-05,2]
[422858454,1779534650000,-500.0,8.609e-05,2]
[422858514,1779534651000,-150.0,9.468e-05,2]
[422858516,1779534651000,-587.0,9.497e-05,2]
[422858518,1779534651000,-150.0,9.498e-05,2]
[422858515,1779534651000,-262.092846,9.476e-05,2]
[422858513,1779534651000,-150.0,9.468e-05,2]
[422858533,1779534651000,-9999.99,9.67e-05,2]
[422858510,1779534651000,-208.78535381,9.453e-05,2]
[422858508,1779534651000,-150.0,9.425e-05,2]
[422858511,1779534651000,-150.0,9.461e-05,2]
[422858509,1779534651000,-500.0,9.431e-05,2]
[422858517,1779534651000,-2351.0,9.497e-05,2]
[422858512,1779534651000,-150.0,9.468e-05,2]
[422858525,1779534651000,-150.0,9.607e-05,2]
[422858531,1779534651000,-150.0,9.666e-05,2]
[422858523,1779534651000,-152.21,9.589e-05,2]
[422858521,1779534651000,-150.0,9.571e-05,2]
[422858522,1779534651000,-433.0,9.571e-05,2]
[422858519,1779534651000,-150.0,9.534e-05,2]
[422858520,1779534651000,-150.0,9.534e-05,2]
[422858527,1779534651000,-1834.66789591,9.642e-05,2]
[422858528,1779534651000,-150.0,9.644e-05,2]
[422858529,1779534651000,-150.0,9.666e-05,2]
[422858530,1779534651000,-150.0,9.666e-05,2]
[422858526,1779534651000,-150.0,9.616e-05,2]
[422858532,1779534651000,-14018.16,9.67e-05,2]
[422858507,1779534651000,-150.0,9.388e-05,2]
[422858534,1779534651000,-27698.0,9.67e-05,2]
[422858524,1779534651000,-151.0,9.589e-05,2]
[422858504,1779534651000,-150.0,9.352e-05,2]
[422858491,1779534651000,-500.0,9.157e-05,2]
[422858506,1779534651000,-150.0,9.37e-05,2]
[422858476,1779534651000,-1834.66789592,8.928e-05,2]
[422858478,1779534651000,-151.0,8.986e-05,2]
[422858477,1779534651000,-150.0,8.95e-05,2]
[422858480,1779534651000,-167.17,9.011e-05,2]
[422858483,1779534651000,-150.0,9.059e-05,2]
[422858479,1779534651000,-150.0,8.986e-05,2]
[422858481,1779534651000,-150.0,9.023e-05,2]
[422858482,1779534651000,-150.0,9.041e-05,2]
[422858484,1779534651000,-150.0,9.074e-05,2]
[422858485,1779534651000,-150.0,9.074e-05,2]
[422858486,1779534651000,-150.0,9.074e-05,2]
[422858489,1779534651000,-312.22,9.129e-05,2]
[422858505,1779534651000,-150.0,9.37e-05,2]
[422858488,1779534651000,-150.0,9.123e-05,2]
[422858490,1779534651000,-150.0,9.132e-05,2]
[422858492,1779534651000,-150.0,9.169e-05,2]
[422858493,1779534651000,-150.0,9.205e-05,2]
[422858494,1779534651000,-150.0,9.205e-05,2]
[422858495,1779534651000,-150.0,9.242e-05,2]
[422858496,1779534651000,-219.42,9.247e-05,2]
[422858497,1779534651000,-2000.0,9.247e-05,2]
[422858498,1779534651000,-151.0,9.247e-05,2]
[422858501,1779534651000,-150.0,9.271e-05,2]
[422858500,1779534651000,-150.0,9.271e-05,2]
[422858502,1779534651000,-150.0,9.279e-05,2]
[422858503,1779534651000,-150.0,9.315e-05,2]
[422858487,1779534651000,-150.0,9.096e-05,2]
[422858538,1779534651000,-500.0,9.705e-05,2]
[422858499,1779534651000,-150.0,9.271e-05,2]
[422858536,1779534651000,-150.0,9.68e-05,2]
[422858573,1779534651000,-275.74040286,0.0001,2]
[422858595,1779534651000,-4000.0,0.00010278,2]
[422858574,1779534651000,-163.47,0.0001,2]
[422858571,1779534651000,-1000.0,0.0001,2]
[422858569,1779534651000,-1000.0,0.0001,2]
[422858572,1779534651000,-215.14828486,0.0001,2]
[422858575,1779534651000,-550.78168,0.0001,2]
[422858576,1779534651000,-550.78168,0.0001,2]
[422858577,1779534651000,-550.78169,0.0001,2]
[422858580,1779534651000,-550.78168,0.0001,2]
[422858579,1779534651000,-550.78168,0.0001,2]
[422858578,1779534651000,-550.78168,0.0001,2]
[422858583,1779534651000,-580.14502158,0.0001,2]
[422858582,1779534651000,-151.0,0.0001,2]
[422858584,1779534651000,-350.0,0.00010021,2]